[Event "Open Nuevo Centro. Jornada 1"]
[Site "Chess.com"]
[Date "2020.06.19"]
[Round "7"]
[White "Garcia, Jhoel"]
[Black "Donate Moreno, Silvia"]
[Result "1-0"]
[WhiteElo "2324"]
[BlackElo "1779"]
[TimeControl "180+2"]
[EndTime "11:46:33 PDT"]
[Termination "Victoria de shoels por abandono"]

1. g3 {[%clk 0:03:01.9]} 1... g6 {[%clk 0:02:59.8]} 2. Bg2 {[%clk 0:03:03.2]}
2... Bg7 {[%clk 0:03:00.3]} 3. Nf3 {[%clk 0:03:04.7]} 3... Nf6 {[%clk
0:03:00.4]} 4. O-O {[%clk 0:03:06.6]} 4... O-O {[%clk 0:03:00.7]} 5. d4 {[%clk
0:03:08]} 5... d6 {[%clk 0:03:00.8]} 6. c4 {[%clk 0:03:09.4]} 6... Nc6 {[%clk
0:02:59.3]} 7. Nc3 {[%clk 0:03:10.5]} 7... e5 {[%clk 0:02:59.5]} 8. dxe5 {[%clk
0:03:07.7]} 8... dxe5 {[%clk 0:02:59.5]} 9. Bg5 {[%clk 0:03:09.1]} 9... Qxd1
{[%clk 0:02:36.7]} 10. Raxd1 {[%clk 0:03:08.9]} 10... Be6 {[%clk 0:02:37]} 11.
Nd5 {[%clk 0:03:05.9]} 11... Bxd5 {[%clk 0:02:27.4]} 12. cxd5 {[%clk 0:03:06.2]}
12... Nd4 {[%clk 0:02:27.6]} 13. Nxd4 {[%clk 0:03:03.7]} 13... exd4 {[%clk
0:02:28.2]} 14. Rxd4 {[%clk 0:03:04.3]} 14... Rfe8 {[%clk 0:02:24.8]} 15. Rd2
{[%clk 0:03:00.1]} 15... Nd7 {[%clk 0:02:18.3]} 16. e4 {[%clk 0:02:56.2]} 16...
Nc5 {[%clk 0:02:16.2]} 17. f3 {[%clk 0:02:54.1]} 17... h6 {[%clk 0:02:10.4]} 18.
Be3 {[%clk 0:02:53.6]} 18... Nd7 {[%clk 0:02:08.2]} 19. Rc1 {[%clk 0:02:54.8]}
19... Rec8 {[%clk 0:01:52.3]} 20. Rdc2 {[%clk 0:02:54.7]} 20... Nb6 {[%clk
0:01:39.6]} 21. Rxc7 {[%clk 0:02:55.2]} 21... Bxb2 {[%clk 0:01:32.7]} 22. R1c2
{[%clk 0:02:47.7]} 22... Rxc7 {[%clk 0:01:24.8]} 23. Rxc7 {[%clk 0:02:47.8]} 1

[Event "Open Nuevo Centro. Jornada 1"]
[Site "Chess.com"]
[Date "2020.06.19"]
[Round "7"]
[White "Elenkov Olmo, Ivan"]
[Black "Beneyto de Ramon, Guillermo"]
[Result "0-1"]
[WhiteElo "818"]
[BlackElo "1489"]
[TimeControl "180+2"]
[EndTime "11:46:44 PDT"]
[Termination "Victoria de GUILLETE por abandono"]

1. e4 {[%clk 0:03:01.9]} 1... Nf6 {[%clk 0:02:58.8]} 2. Nc3 {[%clk 0:03:01.9]}
2... e5 {[%clk 0:02:56.4]} 3. Nf3 {[%clk 0:03:01.6]} 3... Nc6 {[%clk 0:02:57.3]}
4. Bc4 {[%clk 0:02:56.3]} 4... Nxe4 {[%clk 0:02:57.7]} 5. Nxe4 {[%clk
0:02:52.1]} 5... d5 {[%clk 0:02:57.6]} 6. Bxd5 {[%clk 0:02:49.3]} 6... Qxd5
{[%clk 0:02:58.3]} 7. Nc3 {[%clk 0:02:36.6]} 7... Qd8 {[%clk 0:02:57.3]} 8. a3
{[%clk 0:02:24.6]} 8... Bg4 {[%clk 0:02:56.1]} 9. h3 {[%clk 0:02:10.6]} 9... Bh5
{[%clk 0:02:55.6]} 10. g4 {[%clk 0:02:09.3]} 10... Bg6 {[%clk 0:02:56.4]} 11. h4
{[%clk 0:02:08.8]} 11... h5 {[%clk 0:02:55.2]} 12. g5 {[%clk 0:02:03.4]} 12...
Bc5 {[%clk 0:02:49.9]} 13. b4 {[%clk 0:01:56.7]} 13... Bb6 {[%clk 0:02:48.1]}
14. b5 {[%clk 0:01:52.4]} 14... Nd4 {[%clk 0:02:47.7]} 15. Nxe5 {[%clk
0:01:48.5]} 15... Nxc2+ {[%clk 0:02:46.8]} 16. Kf1 {[%clk 0:01:40.4]} 16... Nxa1
{[%clk 0:02:35.2]} 17. Nxg6 {[%clk 0:01:30.9]} 17... fxg6 {[%clk 0:02:35]} 18.
Qe2+ {[%clk 0:01:28.3]} 18... Qe7 {[%clk 0:02:33.9]} 19. Qd1 {[%clk 0:01:24.4]}
19... O-O {[%clk 0:02:30.6]} 20. Kg2 {[%clk 0:01:19.9]} 20... Rxf2+ {[%clk
0:02:29.9]} 0

[Event "Open Nuevo Centro. Jornada 1"]
[Site "Chess.com"]
[Date "2020.06.19"]
[Round "7"]
[White "Garrido Barona, An�bal"]
[Black "Torres Biosca, Roberto"]
[Result "1-0"]
[WhiteElo "577"]
[BlackElo "582"]
[TimeControl "180+2"]
[EndTime "11:46:48 PDT"]
[Termination "Victoria de ANIBALGB11 por jaque mate"]

1. e4 {[%clk 0:03:01.9]} 1... e5 {[%clk 0:02:59.6]} 2. Nf3 {[%clk 0:02:53.9]}
2... Bc5 {[%clk 0:02:59.8]} 3. Bc4 {[%clk 0:02:48.4]} 3... Qe7 {[%clk
0:02:59.5]} 4. d3 {[%clk 0:02:39]} 4... Bb6 {[%clk 0:02:55.3]} 5. O-O {[%clk
0:02:33.6]} 5... h5 {[%clk 0:02:37.9]} 6. b3 {[%clk 0:02:31.8]} 6... h4 {[%clk
0:02:37.7]} 7. Ba3 {[%clk 0:02:31.2]} 7... h3 {[%clk 0:02:38]} 8. Bxe7 {[%clk
0:02:29.5]} 8... Kxe7 {[%clk 0:02:36.9]} 9. gxh3 {[%clk 0:02:28.7]} 9... Rxh3
{[%clk 0:02:34.6]} 10. Ng5 {[%clk 0:02:26.9]} 10... Rh5 {[%clk 0:02:32.4]} 11.
Qxh5 {[%clk 0:02:19.4]} 11... g6 {[%clk 0:02:26.6]} 12. Qf3 {[%clk 0:02:12.1]}
12... Nh6 {[%clk 0:02:24.8]} 13. Nxf7 {[%clk 0:02:09.5]} 13... Nxf7 {[%clk
0:02:22.5]} 14. Qxf7+ {[%clk 0:02:08.2]} 14... Kd8 {[%clk 0:02:19.3]} 15. Nc3
{[%clk 0:01:56.2]} 15... c6 {[%clk 0:02:17.1]} 16. b4 {[%clk 0:01:53.3]} 16...
Kc7 {[%clk 0:02:16.5]} 17. b5 {[%clk 0:01:50.3]} 17... c5 {[%clk 0:01:58.9]} 18.
Nd5+ {[%clk 0:01:44]} 18... Kd6 {[%clk 0:01:54.7]} 19. Qe7# {[%clk 0:01:40.4]}
1

[Event "Open Nuevo Centro. Jornada 1"]
[Site "Chess.com"]
[Date "2020.06.19"]
[Round "7"]
[White "Perrot, Fabien "]
[Black "Cin� Asensio, Luca "]
[Result "1-0"]
[WhiteElo "981"]
[BlackElo "476"]
[TimeControl "180+2"]
[EndTime "11:47:10 PDT"]
[Termination "Victoria de InspiredMinds por jaque mate"]

1. d4 {[%clk 0:02:57.3]} 1... e6 {[%clk 0:02:58.8]} 2. Bf4 {[%clk 0:02:48.8]}
2... d6 {[%clk 0:02:57.6]} 3. e3 {[%clk 0:02:49.6]} 3... Be7 {[%clk 0:02:56.7]}
4. Bd3 {[%clk 0:02:48.1]} 4... Bd7 {[%clk 0:02:55.2]} 5. Nf3 {[%clk 0:02:47]}
5... Nf6 {[%clk 0:02:55]} 6. O-O {[%clk 0:02:46.9]} 6... Nc6 {[%clk 0:02:52.3]}
7. c4 {[%clk 0:02:33.1]} 7... O-O {[%clk 0:02:50.4]} 8. Nbd2 {[%clk 0:02:24.5]}
8... Nh5 {[%clk 0:02:46.5]} 9. Qb3 {[%clk 0:01:59.2]} 9... Nxf4 {[%clk
0:02:42.3]} 10. exf4 {[%clk 0:02:01.1]} 10... Na5 {[%clk 0:02:40]} 11. Qc2
{[%clk 0:01:59.1]} 11... Qe8 {[%clk 0:02:37.2]} 12. Bxh7+ {[%clk 0:01:44.9]}
12... Kh8 {[%clk 0:02:36.4]} 13. Be4 {[%clk 0:01:32.6]} 13... Ba4 {[%clk
0:02:34]} 14. b3 {[%clk 0:01:25.8]} 14... Bc6 {[%clk 0:02:30.7]} 15. Qc3 {[%clk
0:01:01.6]} 15... b6 {[%clk 0:02:26.1]} 16. Bc2 {[%clk 0:00:51.9]} 16... Bxf3
{[%clk 0:02:22.3]} 17. Nxf3 {[%clk 0:00:51.7]} 17... d5 {[%clk 0:02:19]} 18. Qd3
{[%clk 0:00:50.1]} 18... dxc4 {[%clk 0:02:16.7]} 19. Qh7# {[%clk 0:00:50]} 1

[Event "Open Nuevo Centro. Jornada 1"]
[Site "Chess.com"]
[Date "2020.06.19"]
[Round "7"]
[White "Fern�ndez Mart�n, Berta"]
[Black "Sanchis Bon, Sergi"]
[Result "0-1"]
[WhiteElo "723"]
[BlackElo "1054"]
[TimeControl "180+2"]
[EndTime "11:47:16 PDT"]
[Termination "Victoria de Sergi_2011 por tiempo"]

1. e4 {[%clk 0:01:49.1]} 1... e5 {[%clk 0:02:56.6]} 2. Nf3 {[%clk 0:01:48.9]}
2... Bd6 {[%clk 0:02:50.6]} 3. Bc4 {[%clk 0:01:48.4]} 3... Nc6 {[%clk
0:02:50.1]} 4. c3 {[%clk 0:01:45.6]} 4... Nf6 {[%clk 0:02:51.3]} 5. Qe2 {[%clk
0:01:30.6]} 5... b6 {[%clk 0:02:48.1]} 6. d4 {[%clk 0:01:20.4]} 6... exd4 {[%clk
0:02:46.3]} 7. Bg5 {[%clk 0:00:56.3]} 7... dxc3 {[%clk 0:02:40.9]} 8. Nxc3
{[%clk 0:00:52.6]} 8... Bc5 {[%clk 0:02:33.4]} 9. O-O {[%clk 0:00:11.7]} 9...
Bd4 {[%clk 0:02:29.7]} 10. Bxf6 {[%clk 0:00:02.5]} 10... Qxf6 {[%clk 0:02:22.8]}
0

[Event "Open Nuevo Centro. Jornada 1"]
[Site "Chess.com"]
[Date "2020.06.19"]
[Round "7"]
[White "Gukasov, Artem"]
[Black "R�os Valle, Daniel "]
[Result "0-1"]
[WhiteElo "1532"]
[BlackElo "1205"]
[TimeControl "180+2"]
[EndTime "11:47:21 PDT"]
[Termination "Victoria de danielrios010309 por abandono"]

1. e4 {[%clk 0:03:01.9]} 1... c5 {[%clk 0:03:00.1]} 2. Nf3 {[%clk 0:03:02.3]}
2... Nc6 {[%clk 0:03:00.2]} 3. d3 {[%clk 0:03:04.2]} 3... d6 {[%clk 0:02:56.4]}
4. d4 {[%clk 0:03:06.1]} 4... cxd4 {[%clk 0:02:56.5]} 5. Nxd4 {[%clk 0:03:06.4]}
5... Nf6 {[%clk 0:02:57.7]} 6. Nc3 {[%clk 0:03:07.3]} 6... e6 {[%clk 0:02:55]}
7. Be3 {[%clk 0:03:07.1]} 7... Bd7 {[%clk 0:02:54.7]} 8. Be2 {[%clk 0:03:07]}
8... Be7 {[%clk 0:02:54.2]} 9. O-O {[%clk 0:03:06.9]} 9... O-O {[%clk
0:02:53.6]} 10. f4 {[%clk 0:03:06.9]} 10... e5 {[%clk 0:02:48.6]} 11. Nxc6
{[%clk 0:03:06.2]} 11... Bxc6 {[%clk 0:02:46.9]} 12. fxe5 {[%clk 0:03:05.2]}
12... dxe5 {[%clk 0:02:47.9]} 13. Bf3 {[%clk 0:03:04.6]} 13... Bb4 {[%clk
0:02:44.7]} 14. Qxd8 {[%clk 0:02:48.1]} 14... Rfxd8 {[%clk 0:02:40.9]} 15. Ne2
{[%clk 0:02:48.2]} 15... Bxe4 {[%clk 0:02:37.8]} 16. Bxe4 {[%clk 0:02:48.9]}
16... Nxe4 {[%clk 0:02:37.6]} 17. c3 {[%clk 0:02:48.8]} 17... Ba5 {[%clk
0:02:32.5]} 18. Rad1 {[%clk 0:02:49.1]} 18... f5 {[%clk 0:02:22.4]} 19. g3
{[%clk 0:02:20.4]} 19... f4 {[%clk 0:02:24.3]} 20. gxf4 {[%clk 0:02:11.3]} 20...
Rxd1 {[%clk 0:02:23.4]} 21. Rxd1 {[%clk 0:02:10.9]} 21... exf4 {[%clk 0:02:21]}
22. Bxf4 {[%clk 0:02:10.8]} 22... Re8 {[%clk 0:02:14.5]} 23. Ng3 {[%clk
0:02:07.3]} 23... Nxg3 {[%clk 0:02:12.9]} 24. Bxg3 {[%clk 0:02:09.2]} 24... Re2
{[%clk 0:02:12.6]} 25. Rf1 {[%clk 0:01:44.1]} 25... Rxb2 {[%clk 0:02:10.8]} 26.
Bd6 {[%clk 0:01:44.7]} 26... h6 {[%clk 0:02:03.9]} 27. Rf6 {[%clk 0:01:36.7]}
27... gxf6 {[%clk 0:02:01.8]} 0

[Event "Open Nuevo Centro. Jornada 1"]
[Site "Chess.com"]
[Date "2020.06.19"]
[Round "7"]
[White "Limaymanta Solis, Luis Anderson"]
[Black "Yeste Campos, Manuel"]
[Result "1-0"]
[WhiteElo "1062"]
[BlackElo "906"]
[TimeControl "180+2"]
[EndTime "11:47:30 PDT"]
[Termination "Victoria de Luinao por jaque mate"]

1. e3 {[%clk 0:03:01.9]} 1... e5 {[%clk 0:03:00.1]} 2. b3 {[%clk 0:03:02.2]}
2... Nc6 {[%clk 0:02:59.2]} 3. Bc4 {[%clk 0:03:02.8]} 3... Nf6 {[%clk
0:02:58.9]} 4. Nc3 {[%clk 0:03:01]} 4... d5 {[%clk 0:02:55.7]} 5. Bb5 {[%clk
0:02:59.4]} 5... Bd7 {[%clk 0:02:55]} 6. Qf3 {[%clk 0:02:54.1]} 6... e4 {[%clk
0:02:48.4]} 7. Qg3 {[%clk 0:02:49.8]} 7... Bd6 {[%clk 0:02:47.8]} 8. f4 {[%clk
0:02:50.2]} 8... O-O {[%clk 0:02:46.8]} 9. Bb2 {[%clk 0:02:45.7]} 9... Re8
{[%clk 0:02:44.3]} 10. Nxd5 {[%clk 0:02:46.2]} 10... g6 {[%clk 0:02:38.9]} 11.
Nxf6+ {[%clk 0:02:44.5]} 11... Kg7 {[%clk 0:02:38.1]} 12. Nxe8+ {[%clk
0:02:42.3]} 12... Kf8 {[%clk 0:02:34.2]} 13. Nf6 {[%clk 0:02:36.3]} 13... Na5
{[%clk 0:02:30.4]} 14. Nxd7+ {[%clk 0:02:34.3]} 14... Kg8 {[%clk 0:02:24.6]} 15.
h4 {[%clk 0:02:29.1]} 15... Bb4 {[%clk 0:02:18]} 16. h5 {[%clk 0:02:20.4]} 16...
c6 {[%clk 0:02:17.3]} 17. Bf6 {[%clk 0:02:15.5]} 17... Qxd7 {[%clk 0:02:13.1]}
18. Be2 {[%clk 0:02:11.1]} 18... Qxd2+ {[%clk 0:02:12.9]} 19. Kf2 {[%clk
0:02:12.2]} 19... Qxc2 {[%clk 0:02:08.3]} 20. Rd1 {[%clk 0:02:08.3]} 20... Rf8
{[%clk 0:02:03.7]} 21. hxg6 {[%clk 0:02:06.8]} 21... fxg6 {[%clk 0:02:03.3]} 22.
Nh3 {[%clk 0:02:00.4]} 22... Nxb3 {[%clk 0:01:52]} 23. Ng5 {[%clk 0:01:51.6]}
23... Rxf6 {[%clk 0:01:49]} 24. Nxh7 {[%clk 0:01:45.8]} 24... Kf7 {[%clk
0:01:48.8]} 25. Ng5+ {[%clk 0:01:45.6]} 25... Ke7 {[%clk 0:01:46]} 26. Rh7+
{[%clk 0:01:46.6]} 26... Kf8 {[%clk 0:01:43.2]} 27. Rd8# {[%clk 0:01:41.2]} 1

[Event "Open Nuevo Centro. Jornada 1"]
[Site "Chess.com"]
[Date "2020.06.19"]
[Round "7"]
[White "Maestre Soler, Sergio"]
[Black "Gimenez Sanchis, Jose Antonio"]
[Result "0-1"]
[WhiteElo "948"]
[BlackElo "1421"]
[TimeControl "180+2"]
[EndTime "11:47:45 PDT"]
[Termination "Victoria de migesoj por abandono"]

1. e4 {[%clk 0:02:53.6]} 1... c6 {[%clk 0:03:00]} 2. Bc4 {[%clk 0:02:54.4]} 2...
d5 {[%clk 0:03:00.9]} 3. exd5 {[%clk 0:02:55.2]} 3... cxd5 {[%clk 0:03:02.1]} 4.
Bd3 {[%clk 0:02:54.3]} 4... Nc6 {[%clk 0:03:01.6]} 5. Bb5 {[%clk 0:02:47.2]}
5... Bf5 {[%clk 0:03:00.4]} 6. Bxc6+ {[%clk 0:02:43.7]} 6... bxc6 {[%clk
0:03:00.9]} 7. Qf3 {[%clk 0:02:24.9]} 7... e6 {[%clk 0:03:00.9]} 8. Nc3 {[%clk
0:02:09]} 8... Nf6 {[%clk 0:03:00.4]} 9. d3 {[%clk 0:02:07.7]} 9... Bd6 {[%clk
0:02:57.5]} 10. Bg5 {[%clk 0:02:05.5]} 10... O-O {[%clk 0:02:57.3]} 11. Bxf6
{[%clk 0:02:05.2]} 11... Qxf6 {[%clk 0:02:57.1]} 12. O-O-O {[%clk 0:02:05.2]}
12... a5 {[%clk 0:02:56.7]} 13. a3 {[%clk 0:01:46.9]} 13... Qg5+ {[%clk
0:02:57.3]} 14. Kb1 {[%clk 0:00:57.6]} 14... Bg4 {[%clk 0:02:56.2]} 15. Qg3
{[%clk 0:00:52.5]} 15... Bxg3 {[%clk 0:02:43.5]} 16. hxg3 {[%clk 0:00:48.4]}
16... Bxd1 {[%clk 0:02:44.2]} 17. Nf3 {[%clk 0:00:46.6]} 17... Bxf3 {[%clk
0:02:44.8]} 18. gxf3 {[%clk 0:00:45.9]} 18... d4 {[%clk 0:02:41.8]} 19. f4
{[%clk 0:00:19.7]} 19... Qg4 {[%clk 0:02:36.4]} 20. Rh4 {[%clk 0:00:10.6]} 20...
Qf3 {[%clk 0:02:35.3]} 0

[Event "Open Nuevo Centro. Jornada 1"]
[Site "Chess.com"]
[Date "2020.06.19"]
[Round "7"]
[White "M�s Ripoll, Vicente"]
[Black "Gerona Maura, Jesus"]
[Result "0-1"]
[WhiteElo "1142"]
[BlackElo "1526"]
[TimeControl "180+2"]
[EndTime "11:47:51 PDT"]
[Termination "Victoria de Retistente por tiempo"]

1. e4 {[%clk 0:03:01.9]} 1... Nf6 {[%clk 0:03:00.2]} 2. Nc3 {[%clk 0:03:00.6]}
2... d5 {[%clk 0:03:00]} 3. e5 {[%clk 0:02:59.2]} 3... d4 {[%clk 0:03:00.1]} 4.
exf6 {[%clk 0:02:55.4]} 4... dxc3 {[%clk 0:03:00.9]} 5. fxg7 {[%clk 0:02:55.3]}
5... cxd2+ {[%clk 0:03:00.2]} 6. Qxd2 {[%clk 0:02:47.7]} 6... Qxd2+ {[%clk
0:03:00.1]} 7. Bxd2 {[%clk 0:02:46.3]} 7... Bxg7 {[%clk 0:03:00.6]} 8. c3 {[%clk
0:02:45.7]} 8... Nc6 {[%clk 0:03:01.1]} 9. Bb5 {[%clk 0:02:43]} 9... Bd7 {[%clk
0:03:00.1]} 10. Nf3 {[%clk 0:02:41.9]} 10... O-O-O {[%clk 0:02:58]} 11. a4
{[%clk 0:02:34.2]} 11... a6 {[%clk 0:02:58.4]} 12. Be2 {[%clk 0:02:26.1]} 12...
Bg4 {[%clk 0:02:52.4]} 13. O-O {[%clk 0:02:21.6]} 13... Bxf3 {[%clk 0:02:51.9]}
14. Bxf3 {[%clk 0:02:21.1]} 14... Rxd2 {[%clk 0:02:52.4]} 15. Bxc6 {[%clk
0:02:16]} 15... bxc6 {[%clk 0:02:51.4]} 16. Rfe1 {[%clk 0:02:03.4]} 16... e6
{[%clk 0:02:50.7]} 17. Re3 {[%clk 0:01:49.6]} 17... Rxb2 {[%clk 0:02:49.3]} 18.
Rg3 {[%clk 0:01:48.5]} 18... Be5 {[%clk 0:02:45.7]} 19. Re3 {[%clk 0:01:44.3]}
19... Bd6 {[%clk 0:02:45.9]} 20. Rf3 {[%clk 0:01:39.5]} 20... f5 {[%clk
0:02:40.3]} 21. Rg3 {[%clk 0:01:35.1]} 21... Bxg3 {[%clk 0:02:38.4]} 0

[Event "Open Nuevo Centro. Jornada 1"]
[Site "Chess.com"]
[Date "2020.06.19"]
[Round "7"]
[White "Vorozbits Moisejevs, Daniels"]
[Black "Fern�ndez Martin, Carlos"]
[Result "0-1"]
[WhiteElo "933"]
[BlackElo "1461"]
[TimeControl "180+2"]
[EndTime "11:48:24 PDT"]
[Termination "Victoria de Pistachomortal por jaque mate"]

1. e4 {[%clk 0:03:01.9]} 1... c5 {[%clk 0:03:00.8]} 2. Nf3 {[%clk 0:03:02.9]}
2... d6 {[%clk 0:03:02.4]} 3. Bb5+ {[%clk 0:03:03.4]} 3... Bd7 {[%clk
0:03:00.9]} 4. Bc4 {[%clk 0:03:02.1]} 4... Nc6 {[%clk 0:03:01.1]} 5. Ng5 {[%clk
0:03:00.7]} 5... e6 {[%clk 0:02:59.9]} 6. O-O {[%clk 0:02:56.9]} 6... Qxg5
{[%clk 0:02:59.9]} 7. d3 {[%clk 0:02:57.8]} 7... Qg6 {[%clk 0:02:58.5]} 8. Bb5
{[%clk 0:02:52.1]} 8... Be7 {[%clk 0:02:57.5]} 9. Qf3 {[%clk 0:02:52]} 9... a6
{[%clk 0:02:57.6]} 10. Ba4 {[%clk 0:02:52.2]} 10... b5 {[%clk 0:02:57.9]} 11.
Bb3 {[%clk 0:02:50.5]} 11... Ne5 {[%clk 0:02:58.8]} 12. Qe3 {[%clk 0:02:40.4]}
12... Nf6 {[%clk 0:02:58.1]} 13. a4 {[%clk 0:02:35.6]} 13... Nfg4 {[%clk
0:02:56.8]} 14. Qh3 {[%clk 0:02:30.7]} 14... c4 {[%clk 0:02:53.4]} 15. dxc4
{[%clk 0:02:30.1]} 15... bxc4 {[%clk 0:02:54.1]} 16. Ba2 {[%clk 0:02:27.7]}
16... d5 {[%clk 0:02:55.1]} 17. exd5 {[%clk 0:02:27.7]} 17... exd5 {[%clk
0:02:56.2]} 18. f4 {[%clk 0:02:13.2]} 18... Nf2 {[%clk 0:02:48.9]} 19. Qf3
{[%clk 0:01:54.4]} 19... Neg4 {[%clk 0:02:46]} 20. Bxc4 {[%clk 0:01:40.6]} 20...
O-O {[%clk 0:02:43.2]} 21. Bxd5 {[%clk 0:01:29.8]} 21... Bc5 {[%clk 0:02:43.4]}
22. Bxa8 {[%clk 0:01:18.5]} 22... Nh3+ {[%clk 0:02:43.4]} 23. Kh1 {[%clk
0:01:17.3]} 23... Ngf2+ {[%clk 0:02:42.8]} 24. Rxf2 {[%clk 0:01:13.1]} 24...
Nxf2+ {[%clk 0:02:43.5]} 25. Kg1 {[%clk 0:01:11.8]} 25... Qxc2 {[%clk
0:02:39.2]} 26. Nc3 {[%clk 0:01:04.3]} 26... Bg4 {[%clk 0:02:32.3]} 27. Qd5
{[%clk 0:00:58.2]} 27... Nd3+ {[%clk 0:02:19.5]} 28. Kh1 {[%clk 0:00:43.1]}
28... Qf2 {[%clk 0:02:13.7]} 29. Bd2 {[%clk 0:00:32.5]} 29... Qg1+ {[%clk
0:02:13.8]} 30. Rxg1 {[%clk 0:00:31.9]} 30... Nf2# {[%clk 0:02:14.9]} 0

[Event "Open Nuevo Centro. Jornada 1"]
[Site "Chess.com"]
[Date "2020.06.19"]
[Round "7"]
[White "Hassomal Daswani, Birjkumar"]
[Black "Gimeno Higueras, Roberto"]
[Result "0-1"]
[WhiteElo "1839"]
[BlackElo "2046"]
[TimeControl "180+2"]
[EndTime "11:48:34 PDT"]
[Termination "Victoria de Chicogrande2 por abandono"]

1. e4 {[%clk 0:02:58.7]} 1... c6 {[%clk 0:03:01.1]} 2. d4 {[%clk 0:02:58.4]}
2... d5 {[%clk 0:03:02.2]} 3. Nc3 {[%clk 0:02:58.8]} 3... dxe4 {[%clk
0:03:03.1]} 4. Nxe4 {[%clk 0:02:59.6]} 4... Bf5 {[%clk 0:03:04.1]} 5. Ng3 {[%clk
0:02:59.7]} 5... Bg6 {[%clk 0:03:05.3]} 6. f4 {[%clk 0:03:00.4]} 6... e6 {[%clk
0:03:06.1]} 7. Nf3 {[%clk 0:03:01.8]} 7... Nd7 {[%clk 0:03:06.4]} 8. Ne5 {[%clk
0:03:03.1]} 8... Nxe5 {[%clk 0:03:07]} 9. fxe5 {[%clk 0:03:03]} 9... Ne7 {[%clk
0:02:56]} 10. c3 {[%clk 0:03:03]} 10... Nf5 {[%clk 0:02:53.4]} 11. Nxf5 {[%clk
0:03:02.7]} 11... Bxf5 {[%clk 0:02:54.8]} 12. Bd3 {[%clk 0:03:02]} 12... Qh4+
{[%clk 0:02:54.9]} 13. g3 {[%clk 0:02:57.8]} 13... Qg4 {[%clk 0:02:36.4]} 14.
Bxf5 {[%clk 0:02:57.6]} 14... Qxf5 {[%clk 0:02:34.7]} 15. Qe2 {[%clk 0:02:55.2]}
15... Be7 {[%clk 0:02:32]} 16. Rf1 {[%clk 0:02:54.4]} 16... Qg6 {[%clk
0:02:32.6]} 17. Be3 {[%clk 0:02:48.8]} 17... a5 {[%clk 0:02:33.4]} 18. Kd2
{[%clk 0:02:46.9]} 18... a4 {[%clk 0:02:34.3]} 19. Rf2 {[%clk 0:02:46.6]} 19...
a3 {[%clk 0:02:35.1]} 20. b3 {[%clk 0:02:46.5]} 20... Rd8 {[%clk 0:02:35.2]} 21.
Qd3 {[%clk 0:02:44.9]} 21... Qh5 {[%clk 0:02:32.9]} 22. Raf1 {[%clk 0:02:38.6]}
22... O-O {[%clk 0:02:33.1]} 23. h4 {[%clk 0:02:37.7]} 23... c5 {[%clk
0:02:32.4]} 24. Kc1 {[%clk 0:02:29.8]} 24... cxd4 {[%clk 0:02:33]} 25. cxd4
{[%clk 0:02:29.3]} 25... Rc8+ {[%clk 0:02:29.2]} 26. Kb1 {[%clk 0:02:29.2]}
26... Rc6 {[%clk 0:02:24.9]} 27. Bg5 {[%clk 0:02:26.7]} 27... Bxg5 {[%clk
0:02:05.6]} 28. hxg5 {[%clk 0:02:27.1]} 28... Rfc8 {[%clk 0:02:05.9]} 29. Rf4
{[%clk 0:01:59.9]} 29... Rc3 {[%clk 0:01:45.5]} 30. Qe4 {[%clk 0:01:43]} 30...
Qh2 {[%clk 0:01:44.9]} 31. R4f2 {[%clk 0:01:41.5]} 31... Qxf2 {[%clk 0:01:43.6]}
0

[Event "Open Nuevo Centro. Jornada 1"]
[Site "Chess.com"]
[Date "2020.06.19"]
[Round "7"]
[White "Casado Andreu, David"]
[Black "Miranda Calvo, Max Rodrigo"]
[Result "1-0"]
[WhiteElo "1570"]
[BlackElo "1195"]
[TimeControl "180+2"]
[EndTime "11:48:46 PDT"]
[Termination "Victoria de dave6635 por jaque mate"]

1. e4 {[%clk 0:02:00.2]} 1... e5 {[%clk 0:02:58.8]} 2. Nf3 {[%clk 0:01:51.6]}
2... Nc6 {[%clk 0:02:56.5]} 3. Bc4 {[%clk 0:01:52.8]} 3... Bc5 {[%clk
0:02:56.3]} 4. c3 {[%clk 0:01:53.6]} 4... d6 {[%clk 0:02:54.4]} 5. d3 {[%clk
0:01:54.6]} 5... Bg4 {[%clk 0:02:53.5]} 6. Bb3 {[%clk 0:01:54.8]} 6... Nge7
{[%clk 0:02:52.4]} 7. Nbd2 {[%clk 0:01:56.2]} 7... f6 {[%clk 0:02:52.3]} 8. h3
{[%clk 0:01:57.6]} 8... Bh5 {[%clk 0:02:52.6]} 9. Nf1 {[%clk 0:01:57.9]} 9...
Qd7 {[%clk 0:02:48.2]} 10. Ng3 {[%clk 0:01:59.2]} 10... Bxf3 {[%clk 0:02:44.6]}
11. Qxf3 {[%clk 0:02:01.1]} 11... O-O-O {[%clk 0:02:44.5]} 12. O-O {[%clk
0:01:53.5]} 12... g6 {[%clk 0:02:40.4]} 13. Be3 {[%clk 0:01:53.4]} 13... Bxe3
{[%clk 0:02:34]} 14. Qxe3 {[%clk 0:01:55.3]} 14... a6 {[%clk 0:02:33.5]} 15. Bd5
{[%clk 0:01:52.9]} 15... Nxd5 {[%clk 0:02:33.7]} 16. exd5 {[%clk 0:01:54.8]}
16... Ne7 {[%clk 0:02:34.4]} 17. Qa7 {[%clk 0:01:53.3]} 17... Qb5 {[%clk
0:02:32.3]} 18. c4 {[%clk 0:01:50.1]} 18... Qxb2 {[%clk 0:02:29.8]} 19. Rfb1
{[%clk 0:01:49.5]} 19... Qd4 {[%clk 0:02:27.6]} 20. Qxb7+ {[%clk 0:01:43.5]}
20... Kd7 {[%clk 0:02:27.7]} 21. Qxa6 {[%clk 0:01:32.8]} 21... Ra8 {[%clk
0:02:27.8]} 22. Qb5+ {[%clk 0:01:32.2]} 22... Kd8 {[%clk 0:02:22.2]} 23. a4
{[%clk 0:01:30.7]} 23... g5 {[%clk 0:02:03.1]} 24. a5 {[%clk 0:01:00.4]} 24...
h5 {[%clk 0:02:00.7]} 25. a6 {[%clk 0:01:00.6]} 25... h4 {[%clk 0:02:00.3]} 26.
Qb7 {[%clk 0:01:00.8]} 26... hxg3 {[%clk 0:01:47.9]} 27. Qxa8+ {[%clk
0:01:00.3]} 27... Kd7 {[%clk 0:01:48.8]} 28. Qxh8 {[%clk 0:00:55.4]} 28... Qxf2+
{[%clk 0:01:48.3]} 29. Kh1 {[%clk 0:00:56.3]} 29... f5 {[%clk 0:01:27]} 30. Rb8
{[%clk 0:00:52.8]} 30... f4 {[%clk 0:01:27.4]} 31. Qd8# {[%clk 0:00:52.7]} 1